bitfinex-derivatives/quotes_SOLF0:USTF0_20250819
["timestamp","ask_amount","ask_price","bid_price","bid_amount"]
[1755587875972,3.14,179.4,179.34,0.99]
[1755587876169,3.14,179.38,179.34,0.99]
[1755587876669,3.14,179.38,179.35,0.99]
[1755587876875,3.71563832,179.46,179.36,0.99]
[1755587876876,3.14,179.42,179.36,0.99]
[1755587877167,3.14,179.4,179.36,0.99]
[1755587878473,3.14,179.43,179.37,0.99]
[1755587878670,8.28646328,179.42,179.37,0.99]
[1755587878865,5.14646328,179.41,179.38,0.99]
[1755587879064,3.14,179.41,179.35,3.71563832]
[1755587879265,3.14,179.45,179.36,0.99]
[1755587879470,5.19933328,179.44,179.36,0.99]
[1755587879664,8.33933328,179.43,179.35,3.71563832]
[1755587879864,5.19933328,179.42,179.35,3.71563832]
[1755587880171,5.19933328,179.41,179.35,3.71563832]
[1755587880364,3.14,179.43,179.35,3.71563832]
[1755587880570,5.20284698,179.42,179.38,3.71563832]
[1755587880763,3.14,179.47,179.39,0.99]
[1755587880964,5.20563188,179.46,179.39,0.99]
[1755587881275,5.20563188,179.45,179.39,0.99]
[1755587881470,5.5709,179.44,179.39,0.99]
[1755587881766,5.5709,179.44,179.42,0.99]
[1755587881968,3.14,179.47,179.43,0.99]
[1755587882173,5.5706,179.45,179.43,0.99]
[1755587882876,3.14,179.49,179.38,3.71563832]
[1755587883071,3.71563832,179.5,179.3,374.6]
[1755587883072,3.14,179.47,179.35,3.71563832]
[1755587883273,3.14,179.45,179.35,3.71563832]
[1755587883476,5.13039017,179.44,179.35,3.71563832]
[1755587883774,5.13039017,179.43,179.37,0.99]
[1755587883970,3.14,179.45,179.37,0.99]
[1755587884275,5.13260781,179.44,179.37,0.99]
[1755587884576,5.5721,179.4,179.37,0.99]
[1755587884970,5.5723,179.39,179.37,0.99]
[1755587885378,3.14,179.43,179.38,0.99]
[1755587885671,5.1356285,179.42,179.38,0.99]
[1755587885869,3.14,179.47,179.38,3.71563832]
[1755587886076,5.13502338,179.46,179.39,0.99]
[1755587886371,5.5706,179.45,179.41,3.71563832]
[1755587886579,5.5706,179.45,179.42,0.99]
[1755587886773,5.5706,179.45,179.41,3.71563832]
[1755587886979,5.5706,179.45,179.43,0.99]
[1755587887468,3.14,179.53,179.41,3.71563832]
[1755587887667,3.14,179.51,179.41,3.71563832]
[1755587887871,3.14,179.49,179.41,3.71563832]
[1755587888081,5.13869268,179.48,179.41,3.71563832]
[1755587888277,5.13869268,179.47,179.4,6.5619]
[1755587888475,5.14220833,179.46,179.4,6.5619]
[1755587888676,3.14,179.49,179.4,6.5619]
[1755587888877,5.14220833,179.48,179.4,0.99]
[1755587889078,5.14220833,179.47,179.4,0.99]
[1755587889376,5.14220833,179.46,179.4,0.99]
[1755587889578,3.14,179.49,179.4,0.99]
[1755587889888,5.14634526,179.48,179.4,0.99]
[1755587890084,3.14,179.46,179.39,5.79310709]
[1755587890382,3.14,179.44,179.37,0.99]
[1755587890682,5.14586368,179.43,179.37,0.99]
[1755587890878,3.14,179.44,179.37,0.99]
[1755587891178,5.15024717,179.43,179.37,0.99]
[1755587891380,8.29558465,179.42,179.37,0.99]
[1755587891581,3.14,179.42,179.37,0.99]
[1755587892086,3.14,179.41,179.37,0.99]
[1755587892676,3.14,179.41,179.35,5.79310709]
[1755587892677,1.06871,179.49,179.35,5.79310709]
[1755587892881,3.14,179.47,179.35,5.79310709]
[1755587893082,3.14,179.45,179.35,5.79310709]
[1755587893282,3.14,179.43,179.35,5.79310709]
[1755587893482,4.96157221,179.42,179.35,5.79310709]
[1755587893682,3.14,179.43,179.35,5.79310709]
[1755587893984,4.96714397,179.42,179.35,5.79310709]
[1755587894178,3.14,179.43,179.35,5.79310709]
[1755587894380,4.96751073,179.42,179.35,5.79310709]
[1755587894579,4.96751073,179.41,179.35,5.79310709]
[1755587894786,3.14,179.43,179.35,5.79310709]
[1755587895083,3.14,179.41,179.34,138.32]
[1755587895382,4.97275717,179.4,179.34,138.32]
[1755587895583,3.14,179.41,179.34,138.32]
[1755587895784,4.97317372,179.4,179.34,138.32]
[1755587895983,3.14,179.41,179.34,138.32]
[1755587896285,4.97288055,179.4,179.34,138.32]
[1755587896487,3.14,179.41,179.34,138.32]
[1755587896684,4.97379894,179.4,179.34,138.32]
[1755587896883,3.14,179.37,179.34,138.32]
[1755587897083,3.14,179.48,179.34,138.32]
[1755587897283,3.14,179.46,179.34,138.32]
[1755587897480,3.14,179.44,179.34,138.32]
[1755587897785,3.14,179.42,179.35,0.99]
[1755587898087,4.97412501,179.41,179.35,0.99]
[1755587898280,3.14,179.42,179.36,0.99]
[1755587898281,4.97412501,179.4,179.36,0.99]
[1755587898483,3.14,179.42,179.36,0.99]
[1755587898682,8.11421473,179.41,179.36,0.99]
[1755587898883,3.14,179.41,179.36,0.99]
[1755587899782,3.14,179.41,179.34,143.8936]
[1755587899986,3.14,179.41,179.35,0.99]
[1755587900182,3.14,179.45,179.35,6.5635]
[1755587900391,4.97608821,179.44,179.35,6.5635]
[1755587900583,4.97608821,179.43,179.35,0.99]
[1755587900782,4.97608821,179.42,179.35,0.99]
[1755587900982,3.14,179.45,179.35,0.99]
[1755587901179,4.97575527,179.44,179.35,0.99]
[1755587901383,4.97575527,179.43,179.35,0.99]
[1755587901583,4.97575527,179.42,179.35,0.99]
[1755587901885,3.14,179.45,179.35,0.99]
[1755587902080,4.97587352,179.44,179.35,0.99]
[1755587902390,8.11587352,179.43,179.35,0.99]
[1755587902591,3.14,179.43,179.35,0.99]
[1755587905091,3.14,179.43,179.35,6.5635]
[1755587905291,3.14,179.43,179.36,0.97]
[1755587906191,3.14,179.43,179.34,138.32]
[1755587906487,3.14,179.43,179.34,139.29]
[1755587908494,3.14,179.43,179.37,4.69628414]
[1755587912098,3.14,179.43,179.37,3.72628414]
[1755587912298,3.14,179.43,179.34,138.32]
[1755587912695,8.84384804,179.42,179.34,138.32]
[1755587912896,3.03,179.41,179.34,138.32]
[1755587913398,3.03,179.41,179.31,4.69628414]
[1755587914401,3.03,179.41,179.31,10.27098414]
[1755587914896,3.03,179.41,179.32,5.5744]
[1755587916097,3.03,179.41,179.31,10.27088414]
[1755587916403,8.86118569,179.4,179.31,10.27088414]
[1755587916702,3.03,179.39,179.31,10.27088414]
[1755587917502,3.03,179.39,179.31,4.69628414]
[1755587917802,3.03,179.39,179.31,0.97]
[1755587919899,3.03,179.39,179.31,6.5446]
[1755587920105,3.03,179.44,179.34,0.97]
[1755587920307,3.03,179.42,179.34,0.97]
[1755587921905,3.03,179.4,179.31,0.97]
[1755587922104,8.86839623,179.39,179.31,0.97]
[1755587922305,3.03,179.38,179.31,0.97]
[1755587923707,3.03,179.38,179.29,141.78628414]
[1755587923905,3.03,179.38,179.29,138.06]
[1755587927111,3.03,179.38,179.3,0.97]
[1755587927713,3.03,179.38,179.31,3.72628414]
[1755587929508,3.03,179.38,179.3,0.97]
[1755587931318,3.03,179.38,179.3,6.545]
[1755587931513,3.03,179.38,179.3,0.97]
[1755587936318,3.03,179.38,179.29,138.06]
[1755587938823,3.11,179.36,179.29,138.06]
[1755587940421,8.86470209,179.35,179.29,138.06]
[1755587940624,3.11,179.35,179.29,138.06]
[1755587941326,3.11,179.35,179.28,0.97]
[1755587941531,3.11,179.33,179.21,4.69722565]
[1755587941728,3.11,179.31,179.21,0.97094151]
[1755587941925,3.11,179.31,179.22,0.97]
[1755587942323,3.11,179.31,179.21,0.97094151]
[1755587942324,3.11,179.29,179.21,0.97094151]
[1755587942720,8.84686234,179.28,179.19,0.97]
[1755587943027,3.11,179.26,179.19,0.97]
[1755587943426,3.11,179.26,179.17,0.97106343]
[1755587943623,3.11,179.26,179.1,9.20224578]
[1755587943831,3.11,179.24,179.14,0.97121248]
[1755587944231,6.83628414,179.24,179.1,0.97]
[1755587944427,3.11,179.2,179.1,0.97]
[1755587944628,3.11,179.2,179.09,4.69771351]
[1755587944936,3.11,179.2,179.09,1.94142937]
[1755587945533,3.11,179.2,179.1,0.97]
[1755587946132,3.11,179.2,179.11,0.97]
[1755587946636,3.11,179.2,179.09,0.97142937]
[1755587947538,3.11,179.2,179.1,0.97]
[1755587947838,3.11,179.2,179.12,0.97]
[1755587948141,3.11,179.24,179.15,0.97]
[1755587950041,3.11,179.28,179.18,0.97]
[1755587950438,3.11,179.28,179.21,0.97]
[1755587951042,3.11,179.32,179.23,3.72628414]
[1755587951237,3.11,179.32,179.24,0.97]
[1755587952236,3.11,179.32,179.21,3.72628414]
[1755587952442,3.11,179.32,179.19,0.97]
[1755587953346,4.90883462,179.31,179.19,0.97]
[1755587953646,3.11,179.3,179.19,0.97]
[1755587956944,3.11,179.28,179.16,6.78745869]
[1755587957145,3.11,179.28,179.17,0.98]
[1755587957446,3.11,179.28,179.18,5.5785]
[1755587957646,3.11,179.28,179.19,0.98]
[1755587957950,3.11,179.33,179.19,0.98]
[1755587958152,3.11,179.33,179.21,0.98]
[1755587963155,3.11,179.33,179.2,5.80745869]
[1755587963353,3.11,179.33,179.21,0.98]
[1755587963654,3.11,179.33,179.22,0.98]
[1755587965657,3.11,179.33,179.23,0.98]
[1755587966359,3.11,179.33,179.23,6.557]
[1755587966553,85.04203272,179.36,179.25,0.98]
[1755587966953,85.04203272,179.36,179.29,0.98]
[1755587968454,3.15,179.35,179.29,0.98]
[1755587973163,3.15,179.35,179.26,138.5]
[1755587974368,3.15,179.35,179.26,142.23051634]
[1755587974862,3.15,179.35,179.26,138.5]
[1755587975069,3.15,179.35,179.23,3.73051634]
[1755587975268,3.15,179.35,179.24,0.98]
[1755587978261,3.15,179.35,179.25,0.98]
[1755587978667,3.15,179.35,179.25,10.28681634]
[1755587978866,3.15,179.35,179.26,0.98]
[1755587979166,3.15,179.35,179.29,0.98]
[1755587981368,3.15,179.35,179.25,3.73051634]
[1755587982079,3.73051634,179.33,179.23,0.98]
[1755587982368,3.15,179.32,179.23,0.98]
[1755587982571,3.15,179.32,179.2,138.36]
[1755587983162,3.15,179.32,179.21,0.98]
[1755587983368,3.15,179.32,179.21,6.5577]
[1755587983870,3.15,179.32,179.22,10.28801634]
[1755587984073,3.15,179.32,179.22,4.71051634]
[1755587984476,3.15,179.32,179.23,5.577]
[1755587984874,3.15,179.32,179.22,10.28781634]
[1755587985369,3.15,179.32,179.22,4.71051634]
[1755587986368,3.15,179.32,179.23,0.98]
[1755587986678,3.15,179.36,179.28,3.73051634]
[1755587987766,3.15,179.36,179.29,0.98]
[1755587989565,3.15,179.36,179.26,3.73051634]
[1755587989769,3.15,179.35,179.25,0.98]
[1755587993182,3.15,179.35,179.25,6.5566]
[1755587993387,8.88041247,179.34,179.25,6.5566]
[1755587993582,3.15,179.35,179.25,6.5566]
[1755587993780,4.96976723,179.34,179.25,0.98]
[1755587993980,3.15,179.35,179.27,0.98]
[1755587994181,3.0,179.38,179.27,0.98]
[1755587994378,4.97201547,179.37,179.27,0.98]
[1755587994572,3.0,179.38,179.27,0.98]
[1755587994775,4.97184004,179.37,179.27,0.98]
[1755587994978,3.0,179.38,179.29,3.73051634]
[1755587995179,4.97184004,179.37,179.29,3.73051634]
[1755587995379,3.0,179.38,179.29,3.73051634]
[1755587995579,4.97233421,179.37,179.29,3.73051634]
[1755587995879,3.0,179.38,179.29,3.73051634]
[1755587996076,4.97233519,179.37,179.29,3.73051634]
[1755587996279,3.0,179.38,179.29,3.73051634]
[1755587996482,4.97211543,179.37,179.29,3.73051634]
[1755587996681,3.0,179.38,179.29,3.73051634]
[1755587996882,4.97159782,179.37,179.29,3.73051634]
[1755587997081,3.0,179.41,179.29,3.73051634]
[1755587997284,3.0,179.38,179.27,0.98]
[1755587997481,8.88728716,179.37,179.27,0.98]
[1755587997679,7.97180024,179.36,179.27,0.98]
[1755587997884,3.0,179.36,179.27,0.98]
[1755587999981,3.0,179.36,179.27,6.5559]
[1755588001184,3.0,179.36,179.27,0.98]
[1755588001382,3.0,179.36,179.29,3.73051634]
[1755588001588,3.0,179.36,179.3,0.98]
[1755588001978,3.0,179.4,179.32,3.73051634]
[1755588002186,8.86388811,179.39,179.32,3.73051634]
[1755588002383,3.0,179.41,179.29,4.71051634]
[1755588002584,8.86167829,179.4,179.29,4.71051634]
[1755588002780,3.0,179.38,179.29,4.71051634]
[1755588004093,3.0,179.38,179.29,10.28571634]
[1755588004286,3.0,179.38,179.29,4.71051634]
[1755588004480,3.0,179.38,179.3,5.575]
[1755588004689,3.0,179.38,179.29,4.71051634]
[1755588005090,3.0,179.38,179.29,10.28571634]
[1755588007080,3.0,179.38,179.31,0.98]
[1755588007492,3.0,179.38,179.29,3.73051634]
[1755588007686,4.93820725,179.37,179.29,3.73051634]
[1755588007887,3.0,179.38,179.29,4.71051634]
[1755588008589,4.93721326,179.37,179.29,4.71051634]
[1755588008795,3.0,179.36,179.29,4.71051634]
[1755588011691,3.0,179.36,179.29,3.73051634]
[1755588013699,3.0,179.41,179.3,0.98]
[1755588013898,3.0,179.39,179.3,0.98]
[1755588014199,8.83597991,179.38,179.3,0.98]
[1755588014498,3.0,179.39,179.3,0.98]
[1755588014697,8.83605013,179.38,179.3,0.98]
[1755588014897,3.0,179.39,179.3,0.98]
[1755588015202,3.0,179.39,179.3,6.555]
[1755588015495,3.0,179.39,179.32,3.73051634]
[1755588015701,90.64453338,179.42,179.33,0.98]
[1755588015902,4.93954725,179.41,179.33,0.98]
[1755588016195,90.64453338,179.42,179.33,6.5539]
[1755588017497,90.64453338,179.42,179.35,0.98]
[1755588017699,90.64453338,179.42,179.35,4.71051634]
[1755588018096,90.64453338,179.42,179.35,10.28371634]
[1755588018299,3.0,179.43,179.36,0.98]
[1755588018896,3.0,179.43,179.36,6.553]
[1755588020305,3.0,179.43,179.36,0.98]
[1755588021203,3.0,179.43,179.33,3.73051634]
[1755588021506,4.93172654,179.42,179.33,3.73051634]
[1755588021705,3.0,179.41,179.33,3.73051634]
[1755588022602,3.0,179.41,179.31,0.98]
[1755588024700,2.94,179.39,179.31,0.98]
[1755588026715,8.81464201,179.38,179.27,4.71051634]
[1755588026919,2.94,179.37,179.27,10.28641634]
[1755588027716,2.94,179.37,179.28,0.98]
[1755588028018,2.94,179.37,179.31,0.98]
[1755588028714,2.94,179.37,179.31,6.5545]
[1755588030012,3.73051634,179.44,179.31,6.5545]
[1755588030215,11.71693573,179.43,179.36,3.73051634]
[1755588030415,2.94,179.43,179.36,3.73051634]
[1755588031508,374.8,179.48,179.39,3.73051634]
[1755588031709,2.94,179.46,179.4,0.98]
[1755588031912,2.94,179.46,179.4,4.71051634]
[1755588035014,102.76503652,179.51,179.41,0.98]
[1755588035211,102.76503652,179.51,179.43,3.73051634]
[1755588039918,102.76503652,179.51,179.35,9.20224578]
[1755588039919,2.94,179.48,179.4,3.73051634]
[1755588040119,2.94,179.48,179.38,0.98]
[1755588040321,2.94,179.48,179.37,3.73051634]
[1755588040617,6.67051634,179.48,179.37,3.73051634]
[1755588040809,4.87075114,179.47,179.37,3.73051634]
[1755588041013,2.94,179.46,179.37,3.73051634]
[1755588043821,2.94,179.46,179.35,0.98]
[1755588044417,3.73051634,179.45,179.35,0.98]
[1755588044622,7.8164309,179.44,179.31,4.71051634]
[1755588044823,4.8763842,179.43,179.31,4.71051634]
[1755588045017,2.94,179.42,179.31,4.71051634]
[1755588045327,2.94,179.42,179.31,10.28521634]
[1755588046225,2.94,179.42,179.32,5.5743]
[1755588046419,2.94,179.42,179.31,3.73051634]
[1755588046621,2.94,179.42,179.32,0.98]
[1755588046826,2.94,179.42,179.32,6.5543]
[1755588047526,2.94,179.42,179.32,0.98]
[1755588050922,7.22084158,179.49,179.26,0.98]
[1755588050923,3.73051634,179.38,179.26,0.98]
[1755588051125,2.94,179.37,179.26,0.98]
[1755588051721,4.87235502,179.36,179.26,0.98]
[1755588051924,2.94,179.37,179.26,0.98]
[1755588052126,2.94,179.35,179.26,0.98]
[1755588062147,2.94,179.35,179.27,3.73051634]
[1755588062442,2.94,179.35,179.28,0.98]
[1755588068353,2.94,179.35,179.25,0.98]
[1755588069249,3.73051634,179.35,179.25,0.98]
[1755588069449,2.94,179.34,179.25,0.98]
[1755588070151,2.94,179.34,179.22,0.98]
[1755588074053,3.73051634,179.32,179.21,137.44]
[1755588074354,2.94,179.31,179.18,375.64]
[1755588074550,2.94,179.28,179.18,375.64]
[1755588074855,2.94,179.28,179.19,0.98]
[1755588079353,2.94,179.3,179.2,3.73051634]
[1755588079561,2.94,179.3,179.21,0.98]
[1755588080258,2.94,179.27,179.15,0.98]
[1755588080557,2.94,179.27,179.16,0.98]
[1755588081157,6.67051634,179.27,179.16,0.98]
[1755588081354,2.94,179.26,179.13,137.72]
[1755588081554,2.94,179.26,179.14,0.98]
[1755588081750,9.22819738,179.37,179.14,0.98]
[1755588081751,2.94,179.23,179.14,0.98]
[1755588084762,3.04,179.21,179.14,0.98]
[1755588085759,3.04,179.21,179.13,137.72]
[1755588086156,3.04,179.19,179.11,0.97]
[1755588087157,3.04,179.19,179.09,0.97142937]
[1755588087360,4.88054066,179.18,179.09,0.97142937]
[1755588087665,3.04,179.17,179.09,0.97142937]
[1755588088756,4.87924173,179.16,179.07,138.14]
[1755588088955,3.04,179.11,179.0,0.97]
[1755588089359,3.04,179.11,179.01,0.97]
[1755588089763,3.04,179.11,179.03,0.97]
[1755588090564,3.04,179.14,179.04,0.97]
[1755588090758,4.87139534,179.13,179.04,0.97]
[1755588090961,3.04,179.12,179.04,0.97]
[1755588091153,3.04,179.15,179.07,0.97]
[1755588091360,3.04,179.18,179.1,0.97]
[1755588091664,4.87072552,179.17,179.11,0.97]
[1755588091860,3.04,179.18,179.11,0.97]
[1755588092059,5.5804,179.13,179.1,0.97]
[1755588092264,3.73051634,179.23,179.12,4.70051634]
[1755588092265,3.04,179.21,179.12,4.70051634]
[1755588092465,4.87119772,179.2,179.12,4.70051634]
[1755588092671,3.04,179.21,179.13,0.97]
[1755588092866,4.87235383,179.2,179.15,3.73051634]
[1755588093070,11.1536,179.25,179.06,140.02]
[1755588093266,4.87329384,179.24,179.15,3.73051634]
[1755588093471,14.1936,179.25,179.15,3.73051634]
[1755588093472,4.87329384,179.23,179.15,3.73051634]
[1755588093674,3.04,179.25,179.16,0.97]
[1755588093869,3.73051634,179.29,179.06,515.04]
[1755588093870,3.04,179.29,179.2,0.97]
[1755588094070,4.87609215,179.28,179.21,3.73051634]
[1755588094371,374.8,179.32,179.22,0.97]
[1755588094565,4.87840806,179.31,179.24,3.73051634]
[1755588094771,3.04,179.33,179.25,0.97]
[1755588095069,3.04,179.37,179.28,0.97]
[1755588095467,4.88107275,179.36,179.28,0.97]
[1755588095670,4.88107275,179.35,179.29,3.73051634]
[1755588095870,4.88107275,179.34,179.29,3.73051634]
[1755588096064,3.04,179.37,179.29,3.73051634]
[1755588096375,3.04,179.35,179.27,0.97]
[1755588096576,4.88045482,179.34,179.22,5.80404546]
[1755588096776,7.92045482,179.33,179.23,0.97]
[1755588096970,4.88045482,179.32,179.23,0.97]
[1755588097167,3.04,179.33,179.23,0.97]
[1755588097369,3.04,179.31,179.23,0.97]
[1755588097673,4.87867587,179.3,179.19,375.93]
[1755588097976,4.87867587,179.29,179.19,375.93]
[1755588098173,3.04,179.31,179.19,375.93]
[1755588098474,3.04,179.29,179.19,375.93]
[1755588098870,3.04,179.29,179.2,0.97]
[1755588100074,5.5773,179.23,179.19,380.5384]
[1755588100267,3.04,179.36,179.21,5.5776]
[1755588100472,4.8807489,179.35,179.23,0.97]
[1755588100674,3.04,179.36,179.24,139.94]
[1755588100870,3.04,179.34,179.24,139.94]
[1755588101275,4.88100296,179.33,179.24,139.94]
[1755588101473,4.88172621,179.32,179.24,139.94]
[1755588101668,3.04,179.31,179.24,139.94]
[1755588102367,3.04,179.31,179.2,5.80404546]
[1755588102678,3.04,179.31,179.19,375.93]
[1755588102872,3.04,179.29,179.19,375.93]
[1755588103069,4.88338243,179.28,179.19,375.93]
[1755588103366,3.04,179.29,179.19,0.97]
[1755588103568,4.88393058,179.28,179.19,0.97]
[1755588103776,3.04,179.29,179.19,0.97]
[1755588103977,4.88393058,179.28,179.19,0.97]
[1755588104178,3.04,179.29,179.19,0.97]
[1755588107377,3.04,179.29,179.18,139.98]
[1755588107678,3.04,179.27,179.15,0.97]
[1755588107872,3.04,179.25,179.15,0.97]
[1755588110281,3.04,179.25,179.16,0.97]
[1755588110771,3.04,179.25,179.16,6.5494]
[1755588111075,3.04,179.29,179.16,0.97]
[1755588111582,3.04,179.29,179.18,0.97]
[1755588112477,3.04,179.29,179.18,5.5788]
[1755588112681,3.04,179.29,179.19,0.98]
[1755588113182,3.04,179.29,179.18,0.98]
[1755588113583,3.04,179.29,179.19,5.5782]
[1755588113774,3.04,179.29,179.2,0.98]
[1755588115878,3.04,179.29,179.2,6.5581]
[1755588116180,5.80404546,179.36,179.12,149.00224578]
[1755588116181,3.11,179.32,179.22,0.98]
[1755588116383,3.11,179.32,179.22,6.5575]
[1755588116787,3.11,179.32,179.23,0.98]
[1755588117282,3.11,179.32,179.24,0.98]
[1755588117483,3.11,179.35,179.24,0.98]
[1755588117880,3.11,179.35,179.25,5.5766]
[1755588118078,3.11,179.35,179.26,0.98]
[1755588118987,3.11,179.35,179.22,0.98]
[1755588119487,3.11,179.35,179.26,0.98]
[1755588120380,3.11,179.41,179.29,5.80404546]
[1755588120685,3.11,179.41,179.3,0.98]
[1755588120990,3.11,179.41,179.33,0.98]
[1755588121481,3.11,179.41,179.29,0.98]
[1755588121885,5.5744,179.33,179.3,0.98]
[1755588122085,3.11,179.41,179.3,0.98]
[1755588126493,3.11,179.41,179.27,5.80404546]
[1755588127987,3.11,179.41,179.28,0.98]
[1755588128497,3.11,179.41,179.28,6.5556]
[1755588129787,3.11,179.41,179.28,0.98]
[1755588131492,3.11,179.41,179.28,6.5556]
[1755588131690,3.11,179.41,179.28,0.98]
[1755588133797,3.11,179.41,179.29,0.98]
[1755588135398,4.82887294,179.4,179.29,0.98]
[1755588135597,3.11,179.41,179.29,0.98]
[1755588135796,3.11,179.39,179.29,0.98]
[1755588138502,4.83913188,179.38,179.29,0.98]
[1755588138800,3.11,179.39,179.29,0.98]
[1755588139698,3.11,179.39,179.31,0.98]
[1755588140302,3.11,179.39,179.32,3.72802242]
[1755588140496,3.11,179.39,179.32,4.70802242]
[1755588140895,3.11,179.42,179.33,0.98]
[1755588141095,4.83980712,179.41,179.35,3.72802242]
[1755588141300,3.11,179.42,179.36,0.98]
[1755588141901,3.11,179.42,179.34,3.72802242]
[1755588142100,3.11,179.4,179.29,4.70802242]
[1755588142599,2.93,179.38,179.29,4.70802242]
[1755588143403,2.93,179.38,179.3,0.97]
[1755588144211,2.93,179.38,179.32,4.69802242]
[1755588144506,2.93,179.38,179.32,0.97]
[1755588145809,2.93,179.38,179.29,5.79967703]
[1755588146304,2.93,179.38,179.29,11.37497703]
[1755588146606,2.93,179.38,179.29,12.34497703]
[1755588147212,2.93,179.38,179.29,6.76967703]
[1755588148113,2.93,179.38,179.29,12.34497703]
[1755588148713,2.93,179.45,179.32,0.97]
[1755588148912,2.93,179.43,179.32,0.97]
[1755588149113,4.83898623,179.42,179.32,6.5444]
[1755588149414,2.93,179.43,179.32,0.97]
[1755588149611,2.93,179.41,179.32,0.97]
[1755588150015,2.93,179.41,179.33,5.79967703]
[1755588150415,2.93,179.41,179.34,0.97]
[1755588151109,1.06871,179.49,179.34,0.97]
[1755588151110,2.93,179.48,179.34,0.97]
[1755588151318,2.93,179.46,179.34,0.97]
[1755588151712,2.93,179.46,179.35,5.5733]
[1755588151914,2.93,179.46,179.36,0.97]
[1755588152309,2.93,179.46,179.27,150.4119]
[1755588152310,2.93,179.46,179.38,0.97]
[1755588156314,4.88407512,179.45,179.33,0.97]
[1755588156511,2.93,179.43,179.33,0.97]
[1755588157419,2.93,179.43,179.33,6.544]
[1755588158515,2.93,179.43,179.35,0.97]
[1755588159216,2.93,179.43,179.35,6.5435]
[1755588160021,2.93,179.43,179.35,0.97]
[1755588160218,4.89010485,179.42,179.35,0.97]
[1755588160517,2.93,179.41,179.35,0.97]
[1755588163921,2.93,179.48,179.35,0.97]
[1755588164126,2.93,179.46,179.35,0.97]
[1755588164326,4.90112157,179.45,179.35,0.97]
[1755588164524,4.90112157,179.44,179.35,0.97]
[1755588164724,4.90112157,179.43,179.35,0.97]
[1755588164925,4.90112157,179.43,179.35,6.5433]
[1755588165126,4.90112157,179.43,179.35,0.97]
[1755588165524,2.93,179.44,179.37,6.76967703]
[1755588166131,2.93,179.44,179.38,5.5725]
[1755588166333,2.93,179.44,179.4,3.72517353]
[1755588166532,2.93,179.44,179.4,4.69517353]
[1755588168138,2.93,179.44,179.41,0.97]
[1755588168443,2.93,179.47,179.43,3.72517353]
[1755588168734,1.06871,179.49,179.43,3.72517353]
[1755588168941,2.93,179.46,179.43,3.72517353]
[1755588169632,2.93,179.45,179.4,0.97]
[1755588169826,2.93,179.48,179.38,0.97]
[1755588170136,2.93,179.48,179.4,3.72517353]
[1755588172337,3.13,179.46,179.38,4.69517353]
[1755588172530,3.13,179.46,179.35,3.72517353]
[1755588172731,3.13,179.44,179.34,0.97]